Workbook

Sheet Arkusz1
A1: Odpowiedzi na pytania zawarte w pierwszej i drugiej części ankiety.
A2: czynniki kształtowania satysfakcji klienta | C2: RESPONDENCI - ILOŚĆ PUNKTÓW | R2: suma respondentów | S2: suma punktów | T2: średnia ważności | U2: wskaźnik ważności w % | V2: średnia satysfakcji | W2: ocena satysfakcji
C3: I | D3: II | E3: III | F3: IV | G3: V | H3: VI | I3: VII | J3: VIII | K3: IX | L3: X | M3: XI | N3: XII | O3: XIII | P3: XIV | Q3: XV
A4: uprzejmość, kultura obsługi klienta | B4: ważność | C4: 2 | D4: 2 | E4: 3 | F4: 3 | G4: 2 | H4: 3 | I4: 2 | J4: 3 | K4: 2 | L4: 2 | M4: 3 | N4: 3 | O4: 2 | P4: 3 | Q4: 2 | R4: 15 | S4: =SUM(C4:Q4) -> 37 | T4: =S4/R4 -> 2.466666667 | U4: =T4/T20*100 -> 13.33333333
B5: satysfakcja | C5: 2 | D5: 3 | E5: 3 | F5: 3 | G5: 2 | H5: 3 | I5: 3 | J5: 2 | K5: 2 | L5: 2 | M5: 3 | N5: 3 | O5: 3 | P5: 3 | Q5: 2 | S5: =SUM(C5:Q5) -> 39 | V5: =S5/R4 -> 2.6 | W5: =V5*U4/100 -> 0.3466666667
A6: wiedza i kompetencja pracownika urzędu | B6: ważność | C6: 2 | D6: 2 | E6: 3 | F6: 3 | G6: 2 | H6: 3 | I6: 3 | J6: 3 | K6: 2 | L6: 2 | M6: 3 | N6: 3 | O6: 2 | P6: 3 | Q6: 2 | R6: 15 | S6: =SUM(C6:Q6) -> 38 | T6: =S6/R6 -> 2.533333333 | U6: =T6/T20*100 -> 13.69369369
B7: satysfakcja | C7: 2 | D7: 3 | E7: 3 | F7: 3 | G7: 2 | H7: 3 | I7: 3 | J7: 2 | K7: 2 | L7: 2 | M7: 2 | N7: 3 | O7: 3 | P7: 3 | Q7: 2 | S7: =SUM(C7:Q7) -> 38 | V7: =S7/R6 -> 2.533333333 | W7: =V7*U6/100 -> 0.3469069069
A8: terminowość załatwiania sprawy | B8: ważność | C8: 2 | D8: 2 | E8: 3 | F8: 3 | G8: 2 | H8: 2 | I8: 2 | J8: 3 | K8: 2 | L8: 2 | M8: 3 | N8: 3 | O8: 2 | P8: 3 | Q8: 2 | R8: 15 | S8: =SUM(C8:Q8) -> 36 | T8: =S8/R8 -> 2.4 | U8: =T8/T20*100 -> 12.97297297
B9: satysfakcja | C9: 2 | D9: 3 | E9: 3 | F9: 3 | G9: 2 | H9: 3 | I9: 3 | J9: 2 | K9: 2 | L9: 2 | M9: 2 | N9: 3 | O9: 3 | P9: 3 | Q9: 2 | S9: =SUM(C9:Q9) -> 38 | V9: =S9/R8 -> 2.533333333 | W9: =V9*U8/100 -> 0.3286486486
A10: warunki lokalowe urzędu | B10: ważność | C10: 2 | D10: 2 | E10: 2 | F10: 2 | G10: 2 | H10: 1 | I10: 2 | J10: 3 | K10: 2 | L10: 3 | M10: 3 | N10: 3 | O10: 1 | P10: 3 | Q10: 2 | R10: 15 | S10: =SUM(C10:Q10) -> 33 | T10: =S10/R10 -> 2.2 | U10: =T10/T20*100 -> 11.89189189
B11: satysfakcja | C11: 2 | D11: 3 | E11: 3 | F11: 3 | G11: 2 | H11: 3 | I11: 2 | J11: 2 | K11: 2 | L11: 2 | M11: 3 | N11: 3 | O11: 3 | P11: 3 | Q11: 2 | S11: =SUM(C11:Q11) -> 38 | V11: =S11/R10 -> 2.533333333 | W11: =V11*U10/100 -> 0.3012612613
A12: uzyskanie pełnej informacji na temat załatwienia sprawy | B12: ważność | C12: 2 | D12: 2 | E12: 3 | F12: 2 | G12: 2 | H12: 2 | I12: 2 | J12: 3 | K12: 2 | L12: 3 | M12: 3 | N12: 2 | O12: 1 | P12: 3 | Q12: 2 | R12: 15 | S12: =SUM(C12:Q12) -> 34 | T12: =S12/R12 -> 2.266666667 | U12: =T12/T20*100 -> 12.25225225
B13: satysfakcja | C13: 2 | D13: 3 | E13: 3 | F13: 2 | G13: 2 | H13: 3 | I13: 2 | J13: 2 | K13: 2 | L13: 3 | M13: 2 | N13: 3 | O13: 3 | P13: 3 | Q13: 2 | S13: =SUM(C13:Q13) -> 37 | V13: =S13/R12 -> 2.466666667 | W13: =V13*U12/100 -> 0.3022222222
A14: czas oczekiwania na przyjęcie przez urzędnika | B14: ważność | C14: 2 | D14: 2 | E14: 2 | F14: 1 | G14: 2 | H14: 2 | I14: 2 | J14: 3 | K14: 2 | L14: 2 | M14: 3 | N14: 2 | O14: 2 | P14: 3 | Q14: 2 | R14: 15 | S14: =SUM(C14:Q14) -> 32 | T14: =S14/R14 -> 2.133333333 | U14: =T14/T20*100 -> 11.53153153
B15: satysfakcja | C15: 2 | D15: 3 | E15: 3 | F15: 2 | G15: 2 | H15: 3 | I15: 3 | J15: 2 | K15: 2 | L15: 3 | M15: 3 | N15: 3 | O15: 3 | P15: 3 | Q15: 2 | S15: =SUM(C15:Q15) -> 39 | V15: =S15/R14 -> 2.6 | W15: =V15*U14/100 -> 0.2998198198
A16: dostęp do informacji, formularzy i ich czytelnośći (BIP) | B16: ważność | C16: 2 | D16: 2 | E16: 2 | F16: 1 | G16: 2 | H16: 0 | I16: 2 | J16: 3 | K16: 2 | L16: 3 | M16: 3 | N16: 3 | O16: 2 | P16: 3 | Q16: 2 | R16: 14 | S16: =SUM(C16:Q16) -> 32 | T16: =S16/R16 -> 2.285714286 | U16: =T16/T20*100 -> 12.35521236
B17: satysfakcja | C17: 2 | D17: 3 | E17: 3 | F17: 2 | G17: 2 | H17: 0 | I17: 3 | J17: 2 | K17: 2 | L17: 2 | M17: 2 | N17: 3 | O17: 3 | P17: 3 | Q17: 2 | S17: =SUM(C17:Q17) -> 34 | V17: =S17/R16 -> 2.428571429 | W17: =V17*U16/100 -> 0.3000551572
A18: pomoc w wypełnianiu dokumentów | B18: ważność | C18: 2 | D18: 2 | E18: 2 | F18: 1 | G18: 2 | H18: 0 | I18: 2 | J18: 3 | K18: 2 | L18: 2 | M18: 3 | N18: 3 | O18: 2 | P18: 3 | Q18: 2 | R18: 14 | S18: =SUM(C18:Q18) -> 31 | T18: =S18/R18 -> 2.214285714 | U18: =T18/T20*100 -> 11.96911197
B19: satysfakcja | C19: 2 | D19: 3 | E19: 3 | F19: 2 | G19: 2 | H19: 0 | I19: 3 | J19: 2 | K19: 2 | L19: 2 | M19: 2 | N19: 3 | O19: 3 | P19: 3 | Q19: 2 | S19: =SUM(C19:Q19) -> 34 | V19: =S19/R18 -> 2.428571429 | W19: =V19*U18/100 -> 0.2906784335
N20: suma ważności czynnika | T20: =SUM(T4:T19) -> 18.5 | U20: =SUM(U4:U18) -> 100 | W20: =SUM(W4:W19) -> 2.516259116
N21: SATYSFAKCJA NA POZIOMIE | V21: =(W20*100)/3 -> 83.87530388 | W21: %
B22: Raport z badania satysfakcji klientów maj 2015 | V22: Strona 3 z 5

Sheet Arkusz2

Sheet Arkusz3
